[Event "Satranc Arena IM Series-1 2024"]
[Site "Izmir"]
[Date "2024.03.19"]
[Round "4.4"]
[White "David, Alexandru-Vasile"]
[Black "Gunduz, Umut Erdem"]
[Result "0-1"]
[ECO "A70"]
[WhiteElo "2360"]
[BlackElo "2314"]
[Annotator "TA"]
[PlyCount "90"]
[EventDate "2024.03.18"]
[EventCountry "TUR"]
[SourceTitle "playchess.com"]
[Source "ChessBase"]
[SourceQuality "1"]
[TimeControl "5400+30"]

{[%evp 27,90,44,68,77,72,62,66,69,82,56,66,53,68,44,43,20,37,29,24,20,18,1,20,19,28,39,26,0,15,0,0,0,0,0,0,0,0,0,0,0,0,0,0,0,0,-19,0,-61,-27,-124,-133,-100,-129,-262,-265,-255,-241,-536,-531,-4214,-4693,-4778,-3713,-6291,-705]} 1. d4 {[%emt 0:00:06]} Nf6 {[%emt 0:00:26]} 2. c4 {[%emt 0:00:05]} c5 {[%emt 0:00:04]} 3. d5 {[%emt 0:00:11]} e6 {[%emt 0:00:04]} 4. Nc3 {[%emt 0:00:12]} exd5 {[%emt 0:00:06]} 5. cxd5 {[%emt 0:00:07]} d6 {[%emt 0:00:02]} 6. e4 {[%emt 0:00:25]} g6 {[%emt 0:00:28]} 7. Be2 {[%emt 0:00:31]} Bg7 {[%emt 0:00:09]} 8. Nf3 {[%emt 0:00:05]} O-O {[%emt 0:01:53]} 9. Be3 {[%emt 0:00:11]} a6 {[%emt 0:01:17]} 10. a4 {[%emt 0:00:37]} Nbd7 {[%emt 0:02:55]} 11. O-O {[%emt 0:05:02]} Ng4 {[%emt 0:03:34]} 12. Bg5 {[%emt 0:04:26]} Bf6 {[%emt 0:10:44]} 13. Bf4 {[%emt 0:00:25]} Nge5 {[%emt 0:06:01]} 14. Nd2 {[%emt 0:00:27]} Bg7 {[%emt 0:04:41]} 15. Be3 {[%emt 0:04:59]} g5 {[%emt 0:01:50]} 16. f4 {[%emt 0:00:20]} gxf4 {[%emt 0:00:24]} 17. Bxf4 {[%emt 0:00:06] White is slightly better.} Rb8 {[%emt 0:09:28]} 18. Kh1 {[%emt 0:01:19]} Qe7 {[%emt 0:01:23]} 19. Bg3 {[%emt 0:03:16]} Kh8 {[%emt 0:02:36]} 20. Qc2 {[%emt 0:06:35]} Rg8 {[%emt 0:01:46]} 21. Nd1 {[%emt 0:01:14]} Bh6 {[%emt 0:00:21][%cal Og8g3] Dodges Ne3} 22. Ra3 {[%emt 0:00:07]} b5 {[%emt 0:10:39]} 23. axb5 {[%emt 0:00:08]} axb5 {[%emt 0:00:01]} 24. Ne3 {[%emt 0:00:39] Nf5 is the strong threat.} Nf6 {[%emt 0:02:42][%cal Og8g3]} (24... Rxg3 {keeps more tension.} 25. Nf5 Qg5 26. Rxg3 Qxd2 27. Qxd2 Bxd2 28. Nxd6 c4) 25. Bh4 {[%emt 0:14:09]} Bg5 {[%emt 0:01:07]} 26. Bxg5 {[%emt 0:02:54]} Rxg5 {[%emt 0:00:14]} 27. Rf4 {[%emt 0:00:12]} Nh5 {[%emt 0:12:52]} 28. Bxh5 {[%emt 0:02:31]} Rxh5 {[%emt 0:01:09]} 29. Ndf1 {[%emt 0:00:06]} b4 {[%emt 0:03:09]} 30. Ra1 {[%emt 0:00:28]} Qg5 {[%emt 0:00:15] Against Ng3} 31. g3 {[%emt 0:02:03]} Bh3 {[%emt 0:01:15]} 32. b3 {[%emt 0:00:33]} Rg8 {[%emt 0:04:29]} 33. Qe2 {[%emt 0:03:53]} Rh6 {[%emt 0:01:52]} 34. Nf5 {[%emt 0:03:15]} Bxf5 {[%emt 0:01:54]} 35. exf5 {[%emt 0:00:07]} Qf6 {[%emt 0:01:31][%cal Oe5d3] [#] Hoping for ...Nd3!} 36. Re1 {[%emt 0:02:43]} Qd8 {[%emt 0:05:05]} 37. Kg2 {[%emt 0:07:25]} (37. Ra1 $11) 37... Rh4 $15 {[%emt 0:00:38]} 38. Kh1 {[%emt 0:15:29]} (38. Rxh4 $1 $11 {keeps the balance.} Qxh4 39. Qa6) 38... Rxf4 $17 {[%emt 0:00:43]} 39. gxf4 {[%emt 0:00:05]} Ng4 {[%emt 0:00:37] White must now prevent ...Qa8. Black is more active.} 40. Ng3 {[%emt 0:05:37] White does not recover from this.} (40. Qb2+ $17 {was worth a try.} Qf6 41. Qxf6+ Nxf6 42. Nd2) 40... Qf6 $19 {[%emt 0:01:02] And now ...Qc3 would win.} 41. Qd2 {[%emt 0:01:57]} h6 {[%emt 0:00:51]} ({Weaker is} 41... Qc3 42. Qxc3+ bxc3 43. Rc1 $17) 42. Re2 $2 {[%emt 0:04:39] [#]} (42. Rf1 {keeps fighting.}) 42... Nxh2 $1 {[%emt 0:01:10][%mdl 512] Black is clearly winning.} 43. Rxh2 {[%emt 0:01:35] aiming for Kg2.} (43. Qd3 Ng4) 43... Rxg3 {[%emt 0:00:03]} 44. Qa2 {[%emt 0:01:59] Dodges Qa1+} Kh7 {[%emt 0:01:36][%cal Of6c3] ( -> ...Qc3!)} 45. Qb1 {[%emt 0:00:29]} Rg4 {[%emt 0:01:32] Weighted Error Value: White=0.55/Black=0.03 (flawless) .  Mistake:       	White=4     	---        Inaccurate:     	White=3     	---        OK:         	White=11    	Black=16     Best:        	---       	Black=1      Brilliant:      	---       	Black=1} (45... Qd4 $142 46. f6+ Rg6) 0-1

[Event "Satranc Arena IM Series-1 2024"]
[Site "Izmir"]
[Date "2024.03.19"]
[Round "4.5"]
[White "Kuru, Atilla"]
[Black "Yalcinkaya, Efe"]
[Result "1-0"]
[ECO "A36"]
[WhiteElo "2246"]
[BlackElo "2085"]
[Annotator "TA"]
[PlyCount "69"]
[EventDate "2024.03.18"]
[EventCountry "TUR"]
[SourceTitle "playchess.com"]
[Source "ChessBase"]
[SourceQuality "1"]
[TimeControl "5400+30"]

{[%evp 16,69,11,7,18,-15,-11,-31,-27,-4,0,-33,-16,-19,0,0,0,-49,20,8,14,18,18,23,47,47,60,63,58,46,58,45,49,53,93,22,62,15,60,102,109,108,104,111,236,253,222,181,685,653,986,972,29990,29991,29991,29991]} 1. c4 {[%emt 0:00:05]} c5 {[%emt 0:00:07]} 2. Nc3 {[%emt 0:00:06]} Nc6 {[%emt 0:00:03]} 3. g3 {[%emt 0:00:05]} g6 {[%emt 0:00:04]} 4. Bg2 {[%emt 0:00:04]} Bg7 {[%emt 0:00:03]} 5. d3 {[%emt 0:00:35]} e5 {[%emt 0:01:21]} 6. e4 {[%emt 0:00:25]} Nge7 {[%emt 0:00:18]} 7. Nge2 {[%emt 0:00:06]} d6 {[%emt 0:00:52]} 8. O-O {[%emt 0:00:07]} O-O {[%emt 0:00:11]} 9. a3 {[%emt 0:00:04]} f5 {[%emt 0:02:46]} 10. h3 {[%emt 0:04:29]} Be6 {[%emt 0:04:45]} 11. f4 {[%emt 0:00:27]} Kh8 {[%emt 0:02:30] Black is slightly better.} 12. Kh2 {[%emt 0:01:17]} Qd7 {[%emt 0:04:00]} 13. fxe5 {[%emt 0:01:37]} dxe5 {[%emt 0:01:46]} 14. Nd5 {[%emt 0:03:30]} h6 {[%emt 0:07:51]} 15. Be3 {[%emt 0:00:15]} Nd4 {[%emt 0:03:14]} 16. Nec3 {[%emt 0:06:17]} (16. b4 $11) 16... fxe4 {[%emt 0:03:01]} ({Black should play} 16... f4 $15 17. gxf4 exf4 18. Nxf4 g5 19. Nxe6 Qd6+ 20. Kh1 Rxf1+ 21. Qxf1 Qxe6) 17. Rxf8+ $11 {[%emt 0:02:14]} Rxf8 {[%emt 0:00:06]} 18. Nxe7 {[%emt 0:00:50]} Qxe7 {[%emt 0:00:35]} 19. Nxe4 {[%emt 0:00:16][%cal Ob2b4]} b6 {[%emt 0:06:05] [#]} 20. b4 $1 {[%emt 0:01:44]} Bd7 {[%emt 0:10:30]} (20... cxb4 21. axb4) 21. bxc5 {[%emt 0:00:26]} bxc5 {[%emt 0:00:05]} 22. Rb1 {[%emt 0:00:22]} Bc6 {[%emt 0:00:22] Inhibits Rb7.} 23. Qg4 {[%emt 0:00:58]} (23. Rb2 {simplifies} Kh7 24. Rf2 Rxf2 25. Bxf2 Bf8 26. Be3) 23... Kh7 {[%emt 0:08:03]} 24. h4 {[%emt 0:06:52]} Rf5 {[%emt 0:05:45] [#]} 25. Re1 {[%emt 0:03:59]} (25. Bxd4 $1 $16 cxd4 26. c5) 25... Qf8 {[%emt 0:05:04]} 26. Kh1 {[%emt 0:01:15] White is more active.} (26. Bxd4 $14 {was preferrable.} exd4 27. Ng5+ hxg5 28. Bxc6 gxh4 29. Be4 hxg3+ 30. Kh3) 26... Qb8 {[%emt 0:01:13]} 27. Bxd4 {[%emt 0:05:14]} exd4 {[%emt 0:01:11] [#]} 28. Ng5+ $1 {[%emt 0:01:47][%mdl 512]} hxg5 {[%emt 0:00:14]} 29. Bxc6 {[%emt 0:00:04][%cal Bg2c6,Bc6f3,Bf3e4][%mdl 32]} Qc8 {[%emt 0:01:30] [#] Black is weak on the light squares. This move loses the game for Black.} (29... gxh4 $16 {might work better.} 30. Be4 Qe5 31. gxh4 (31. Qxh4+ $2 {loses.} Rh5 $19) (31. Kg2 Rg5 $16) 31... Rf6) 30. Bf3 $1 $18 {[%emt 0:00:47]} ({But not} 30. Be4 $2 Rf1+ 31. Kg2 Qxg4 $19) 30... Qf8 {[%emt 0:06:56]} 31. Kg2 {[%emt 0:00:14]} Re5 {[%emt 0:08:42]} (31... gxh4 32. Qxh4+ Bh6) 32. Be4 {[%emt 0:00:20]} Qf6 {[%emt 0:01:53]} 33. h5 {[%emt 0:00:23][%cal Bh4h5,Bh5g6][%mdl 32]} Qa6 {[%emt 0:02:51]} 34. hxg6+ {[%emt 0:00:15]} Kg8 {[%emt 0:02:07]} 35. Qd7 {[%emt 0:00:07] Weighted Error Value: White=0.11 (very precise) /Black=0.75.  Mistake:       	White=3     	Black=3      Inaccurate:     	White=2     	Black=4      OK:         	White=9     	Black=4      Best:        	White=2     	Black=1      Strong:       	White=1     	---        Brilliant:      	White=2     	---} 1-0

[Event "Satranc Arena IM Series-1 2024"]
[Site "Izmir"]
[Date "2024.03.20"]
[Round "5.1"]
[White "Yalcinkaya, Efe"]
[Black "Aydin, Gulenay"]
[Result "0-1"]
[ECO "B07"]
[WhiteElo "2085"]
[BlackElo "2152"]
[Annotator "RC"]
[PlyCount "68"]
[EventDate "2024.03.18"]
[EventCountry "TUR"]
[SourceTitle "playchess.com"]
[Source "ChessBase"]
[SourceQuality "1"]
[TimeControl "5400+30"]

1. e4 {[%emt 0:00:01]} d6 {[%emt 0:00:05]} 2. d4 {[%emt 0:00:03]} Nf6 {[%emt 0:00:05]} 3. Nc3 {[%emt 0:00:03]} e5 {[%emt 0:00:07]} 4. Nge2 {[%emt 0:00:03]} Nbd7 {[%emt 0:07:09]} 5. h3 {[%emt 0:00:16]} g6 {[%emt 0:03:52]} 6. g4 {[%emt 0:02:17]} Bg7 {[%emt 0:00:10]} 7. Bg2 {[%emt 0:00:32]} O-O {[%emt 0:00:37]} 8. Be3 {[%emt 0:00:57]} Re8 {[%emt 0:11:17]} 9. d5 {[%emt 0:01:48]} a5 {[%emt 0:04:28]} 10. Ng3 {[%emt 0:00:34]} Nc5 {[%emt 0:08:06]} 11. a4 {[%emt 0:05:40]} Rf8 {[%emt 0:08:07]} 12. Qd2 {[%emt 0:03:49]} Bd7 {[%emt 0:02:00]} 13. f3 {[%emt 0:06:27]} c6 {[%emt 0:15:44]} 14. h4 {[%emt 0:05:03]} cxd5 {[%emt 0:02:35]} 15. exd5 {[%emt 0:00:12]} e4 {[%emt 0:01:25]} 16. O-O-O {[%emt 0:13:20]} exf3 {[%emt 0:04:45]} 17. Bxf3 {[%emt 0:01:10]} Nxg4 {[%emt 0:02:25]} 18. h5 {[%emt 0:05:20]} Nxe3 {[%emt 0:01:09]} 19. Qxe3 {[%emt 0:00:17]} Qb6 {[%emt 0:01:26]} 20. Rde1 {[%emt 0:10:42]} Nxa4 {[%emt 0:03:01]} 21. Qxb6 {[%emt 0:03:03]} Nxb6 {[%emt 0:00:02]} 22. Nge4 {[%emt 0:00:06]} Be5 {[%emt 0:00:47]} 23. Kb1 {[%emt 0:00:03]} a4 {[%emt 0:01:10]} 24. hxg6 {[%emt 0:01:14]} hxg6 {[%emt 0:00:30]} 25. Ng5 {[%emt 0:00:47]} a3 {[%emt 0:00:53]} 26. Nce4 {[%emt 0:01:26]} axb2 {[%emt 0:04:29]} 27. c3 {[%emt 0:00:03]} Nc4 {[%emt 0:02:27]} 28. Kc2 {[%emt 0:02:30]} Bf5 {[%emt 0:00:49]} 29. Kb3 {[%emt 0:00:25]} Rfc8 {[%emt 0:03:55]} 30. Nh7 {[%emt 0:01:18]} Ra3+ {[%emt 0:05:02]} 31. Kc2 {[%emt 0:00:36]} Rxc3+ {[%emt 0:00:16]} 32. Kb1 {[%emt 0:00:03]} Nd2+ {[%emt 0:00:48]} 33. Kxb2 {[%emt 0:00:03]} Rb3+ {[%emt 0:00:06]} 34. Ka2 {[%emt 0:00:02]} Ra8# {[%emt 0:07:43]} 0-1

[Event "Satranc Arena IM Series-1 2024"]
[Site "Izmir"]
[Date "2024.03.20"]
[Round "5.2"]
[White "Gunduz, Umut Erdem"]
[Black "Kuru, Atilla"]
[Result "0-1"]
[ECO "A29"]
[WhiteElo "2314"]
[BlackElo "2246"]
[Annotator "TA"]
[PlyCount "52"]
[EventDate "2024.03.18"]
[EventCountry "TUR"]
[SourceTitle "playchess.com"]
[Source "ChessBase"]
[SourceQuality "1"]
[TimeControl "5400+30"]

{[%evp 10,52,18,10,90,99,92,86,86,89,87,105,139,146,175,154,161,166,170,152,156,150,142,115,103,61,59,59,102,113,156,134,139,144,202,148,149,166,134,134,210,31,39,-29993,-29994]} 1. c4 {[%emt 0:00:03]} e5 {[%emt 0:02:40]} 2. Nc3 {[%emt 0:00:08]} Nc6 {[%emt 0:00:45]} 3. g3 {[%emt 0:00:07]} Nf6 {[%emt 0:00:13]} 4. Bg2 {[%emt 0:00:01]} Bc5 {[%emt 0:03:08]} 5. Nf3 {[%emt 0:00:45]} O-O {[%emt 0:00:22]} 6. O-O {[%emt 0:00:23][%cal Of3e5]} h6 {[%emt 0:02:58] [#]} (6... d6 $11 {bleibt in der Remisbreite.}) 7. Nxe5 $1 $16 {[%emt 0:03:55]} Nxe5 {[%emt 0:01:06]} 8. d4 {[%emt 0:00:19]} Bxd4 {[%emt 0:07:52] Weiß steht besser.} 9. Qxd4 {[%emt 0:00:01]} d6 {[%emt 0:00:01]} 10. b3 {[%emt 0:00:58]} Qe7 {[%emt 0:00:38]} 11. Bb2 {[%emt 0:00:29]} c5 {[%emt 0:00:08]} 12. Qd2 {[%emt 0:01:08]} Rd8 {[%emt 0:04:25]} 13. Rad1 {[%emt 0:01:24]} a6 {[%emt 0:02:41]} 14. Na4 {[%emt 0:04:56]} Bf5 {[%emt 0:02:31]} 15. Qf4 {[%emt 0:07:46] Pariert Be4.} Bh7 {[%emt 0:03:06]} 16. Nb6 {[%emt 0:01:30]} Rab8 {[%emt 0:00:14]} 17. Nd5 {[%emt 0:05:08]} Nxd5 {[%emt 0:00:21]} 18. Rxd5 {[%emt 0:00:02]} Ng6 {[%emt 0:04:17]} 19. Qd2 $36 {[%emt 0:01:10][%mdl 2048] Läuft bei Weiss.} b5 {[%emt 0:00:09]} 20. cxb5 {[%emt 0:01:49]} axb5 {[%emt 0:00:12]} 21. Rd1 {[%emt 0:00:04]} Nf8 {[%emt 0:00:33]} (21... Re8 $16 22. Qc3 (22. Rxd6 Qxe2 23. Qc1 Ne5 $16) 22... f6 23. Rxd6 Qxe2) 22. Rxd6 {[%emt 0:02:10]} Rxd6 {[%emt 0:01:17]} 23. Qxd6 {[%emt 0:00:02]} Qxe2 {[%emt 0:00:02]} 24. Bf1 {[%emt 0:00:29] Das Läuferpaar ist gut.} Qf3 {[%emt 0:00:12] [#]} (24... Qe8 $16 25. Qxc5 Ne6) 25. Qe5 $2 {[%emt 0:02:58]} (25. Qxb8 {führt zum Matt.} Be4 (25... Qxd1 26. Qxb5 Be4 27. Qe2 $16) (25... Qxd1 26. Qxb5 Be4 27. Qe2 $16)) (25. Re1 $1 $18 Rc8 26. Bg2 (26. Bxb5 Be4 $11)) 25... f6 $14 {[%emt 0:00:57]} 26. Qxb8 {[%emt 0:00:07][%mdl 8192]} (26. Be2 $14 Qe4 27. Qd5+ (27. Qxb8 $2 {zu gefräßig.} Qxe2 28. Rc1 Be4 $19) 27... Ne6 28. Kf1) 26... Be4 {[%emt 0:00:38] Was für ein Comeback für Schwarz.   Gewichteter Fehlerwert: Weiß=0.51/Schwarz=0.24 (präzise) .  Verlustzug:     	Weiß=1     	---        Gewinn verpasst:   	Weiß=1     	---        Fehler:       	---       	Schwarz=2     Ungenau:       	Weiß=1     	Schwarz=3     OK:         	Weiß=6     	Schwarz=7     Bester:       	Weiß=2     	Schwarz=2     Brilliant:      	Weiß=1     	---} (26... Qxd1 27. Qxb5 Nd7 28. Qe2 Qxe2 29. Bxe2 $16) 0-1

[Event "Satranc Arena IM Series-1 2024"]
[Site "Izmir"]
[Date "2024.03.20"]
[Round "5.3"]
[White "Kazimova, Narmin"]
[Black "David, Alexandru-Vasile"]
[Result "1/2-1/2"]
[ECO "D02"]
[WhiteElo "2147"]
[BlackElo "2360"]
[Annotator "TA"]
[PlyCount "70"]
[EventDate "2024.03.18"]
[EventCountry "TUR"]
[SourceTitle "playchess.com"]
[Source "ChessBase"]
[SourceQuality "1"]
[TimeControl "5400+30"]

{[%evp 10,70,18,-1,37,17,20,-9,24,17,17,13,17,14,31,31,38,10,20,0,6,-1,0,0,15,8,27,20,35,24,14,10,26,0,-9,-10,-16,-24,0,-76,0,-27,-45,-38,-21,-82,-78,-85,-85,-95,-87,-87,-92,-91,-46,-85,0,-6,0,0,0,0,0]} 1. d4 {[%emt 0:00:03]} d5 {[%emt 0:00:08]} 2. Nf3 {[%emt 0:00:29]} Nf6 {[%emt 0:00:09]} 3. Bf4 {[%emt 0:00:24]} c5 {[%emt 0:01:10]} 4. e3 {[%emt 0:00:26]} Nc6 {[%emt 0:00:07]} 5. Nbd2 {[%emt 0:00:23]} e6 {[%emt 0:00:09]} 6. c3 {[%emt 0:00:44]} c4 {[%emt 0:00:06]} 7. Qc2 {[%emt 0:30:44]} b5 {[%emt 0:03:01]} 8. e4 {[%emt 0:02:32]} dxe4 {[%emt 0:04:28]} 9. Nxe4 {[%emt 0:00:38]} Nxe4 {[%emt 0:00:09]} 10. Qxe4 {[%emt 0:00:05]} Bb7 {[%emt 0:02:16]} 11. Be2 {[%emt 0:01:00]} Be7 {[%emt 0:01:20]} 12. O-O {[%emt 0:03:28]} O-O {[%emt 0:00:59]} 13. Ne5 {[%emt 0:11:40]} (13. Rfe1 {vereinfacht} Na5 14. Qe3 Bd5 15. Nd2) 13... Qc8 {[%emt 0:03:25][%cal Oc6b4]} 14. Bf3 {[%emt 0:03:59]} Nxe5 {[%emt 0:02:45]} 15. Qxb7 {[%emt 0:00:07]} Nxf3+ {[%emt 0:00:05]} 16. Qxf3 {[%emt 0:00:04]} Qd7 {[%emt 0:00:07]} 17. Rfe1 {[%emt 0:00:56]} Rfe8 {[%emt 0:09:07]} 18. Qg4 {[%emt 0:01:45]} Rad8 {[%emt 0:02:41]} 19. Re3 {[%emt 0:01:05]} Bf6 {[%emt 0:02:49]} 20. Rae1 {[%emt 0:01:10]} b4 {[%emt 0:00:21]} 21. Be5 {[%emt 0:03:51]} Bxe5 {[%emt 0:01:17]} 22. Rxe5 {[%emt 0:02:02]} Qa4 {[%emt 0:05:44]} 23. h3 {[%emt 0:06:25]} h6 {[%emt 0:05:40]} 24. Qe4 {[%emt 0:07:28]} (24. R1e3 $11) 24... Rf8 {[%emt 0:00:53]} (24... Qxa2 $17 25. Qc2 Rb8) 25. cxb4 {[%emt 0:02:10]} Qxb4 {[%emt 0:00:55]} 26. Re2 {[%emt 0:04:07]} Qa4 {[%emt 0:03:34]} 27. a3 {[%emt 0:04:51]} (27. d5 $11) 27... Qd1+ $17 {[%emt 0:00:17]} 28. Re1 {[%emt 0:00:21]} Qxd4 {[%emt 0:00:07]} 29. Qxd4 {[%emt 0:00:39]} Rxd4 {[%emt 0:00:06][%mdl 4096] Endspiel. KRR-KRR} 30. Rc5 {[%emt 0:01:56]} Rb8 {[%emt 0:01:41]} 31. Re2 {[%emt 0:00:44][%cal Be1e2,Be2c2,Bc2c4][%mdl 32]} Rb7 {[%emt 0:00:07]} 32. Rc2 {[%emt 0:00:31] [#]} g5 {[%emt 0:00:40]} ({Günstiger ist} 32... Rd1+ $1 $17 33. Kh2 Rb1) 33. R5xc4 {[%emt 0:01:33] Die Stellung ist ausgeglichen.} Rxc4 {[%emt 0:00:46]} 34. Rxc4 {[%emt 0:00:01]} Rxb2 {[%emt 0:00:08]} 35. Rc7 {[%emt 0:00:12]} Rb1+ {[%emt 0:00:26] Gewichteter Fehlerwert: Weiß=0.19 (sehr präzise) /Schwarz=0.16 (sehr präzise) .  Fehler:       	Weiß=2     	Schwarz=2     Ungenau:       	Weiß=5     	Schwarz=2     OK:         	Weiß=8     	Schwarz=10    Bester:       	---       	Schwarz=1} 1/2-1/2